fUSD/lending_fUSD_20240702
["ID","MTS","AMOUNT","RATE_DAILY","PERIOD"]
[330906435,1719936646428,-291.080013,0.00021498,2]
[330906436,1719936646437,-151.0,0.00021498,2]
[330906437,1719936646446,-151.0,0.00021498,2]
[330906438,1719936646455,-385.918609,0.00021498,2]
[330906439,1719936646464,-151.0,0.00021498,2]
[330906440,1719936646473,-385.918609,0.00021498,2]
[330906442,1719936646483,-151.0,0.00021498,2]
[330906444,1719936646492,-151.0,0.00021498,2]
[330906446,1719936646502,-168.192238,0.00021498,2]
[330906448,1719936646511,-168.192238,0.00021498,2]
[330906450,1719936646521,-151.0,0.00021498,2]
[330906451,1719936646532,-260.262568,0.00021498,2]
[330906453,1719936646541,-807.707154,0.00021498,2]
[330906455,1719936646551,-151.0,0.00021498,2]
[330906457,1719936646560,-807.707154,0.00021498,2]
[330906459,1719936646570,-151.0,0.00021498,2]
[330906460,1719936646580,-151.0,0.00021498,2]
[330906461,1719936646590,-151.0,0.00021498,2]
[330906462,1719936646601,-1293.881447,0.00021498,2]
[330906463,1719936646610,-151.0,0.00021498,2]
[330906464,1719936646621,-451.671939,0.00021498,2]
[330906465,1719936646633,-1293.881447,0.00021498,2]
[330906466,1719936646644,-151.0,0.00021498,2]
[330906467,1719936646653,-451.671939,0.00021498,2]
[330906468,1719936646663,-151.0,0.00021498,2]
[330906469,1719936646673,-151.0,0.00021498,2]
[330906470,1719936646683,-151.0,0.00021498,2]
[330906471,1719936646692,-151.0,0.00021498,2]
[330906472,1719936646702,-151.0,0.00021498,2]
[330906473,1719936646714,-181.310624,0.00021498,2]
[330906474,1719936646724,-181.310624,0.00021498,2]
[330906475,1719936646733,-168.951407,0.00021498,2]
[330906476,1719936646743,-168.951407,0.00021498,2]
[330906477,1719936646752,-311.676995,0.00021498,2]
[330906478,1719936646762,-311.676995,0.00021498,2]
[330906479,1719936646772,-413.332779,0.00021498,2]
[330906480,1719936646781,-151.0,0.00021498,2]
[330906481,1719936646790,-151.0,0.00021498,2]
[330906482,1719936646800,-413.332779,0.00021498,2]
[330906483,1719936646810,-156.147499,0.00021498,2]
[330906484,1719936646820,-151.0,0.00021498,2]
[330906485,1719936646829,-151.0,0.00021498,2]
[330906486,1719936646839,-221.06337,0.00021498,2]
[330906487,1719936646849,-151.0,0.00021498,2]
[330906488,1719936646858,-221.06337,0.00021498,2]
[330906489,1719936646868,-932.432208,0.00021498,2]
[330906490,1719936646878,-194.8095,0.00021498,2]
[330906491,1719936646887,-932.432208,0.00021498,2]
[330906492,1719936646897,-151.0,0.00021498,2]
[330906493,1719936646908,-194.8095,0.00021498,2]
[330906494,1719936646918,-151.0,0.00021498,2]
[330906495,1719936646927,-151.0,0.00021498,2]
[330906496,1719936646937,-151.0,0.00021498,2]
[330906497,1719936646947,-586.850485,0.00021498,2]
[330906498,1719936646957,-151.0,0.00021498,2]
[330906499,1719936646967,-586.850485,0.00021498,2]
[330906500,1719936646977,-151.0,0.00021498,2]
[330906501,1719936646986,-151.0,0.00021498,2]
[330906502,1719936646997,-757.778259,0.00021498,2]
[330906503,1719936647007,-757.778259,0.00021498,2]
[330906504,1719936647017,-151.0,0.00021498,2]
[330906505,1719936647027,-151.0,0.00021498,2]
[330906506,1719936647037,-284.315101,0.00021498,2]
[330906507,1719936647047,-151.0,0.00021498,2]
[330906508,1719936647058,-384.607488,0.00021498,2]
[330906509,1719936647068,-220.89648,0.00021498,2]
[330906510,1719936647077,-384.607488,0.00021498,2]
[330906511,1719936647087,-220.89648,0.00021498,2]
[330906512,1719936647097,-6169.057603,0.00021498,2]
[330906513,1719936647107,-6169.057603,0.00021498,2]
[330906514,1719936647117,-308.950975,0.00021498,2]
[330906515,1719936647127,-308.950975,0.00021498,2]
[330906516,1719936647137,-151.0,0.00021498,2]
[330906517,1719936647146,-151.0,0.00021498,2]
[330906518,1719936647156,-151.0,0.00021498,2]
[330906519,1719936647166,-276.409688,0.00021498,2]
[330906520,1719936647176,-173.542831,0.00021498,2]
[330906521,1719936647186,-151.0,0.00021498,2]
[330906522,1719936647196,-151.0,0.00021498,2]
[330906523,1719936647206,-169.479669,0.00021498,2]
[330906524,1719936647216,-151.0,0.00021498,2]
[330906525,1719936647226,-169.479669,0.00021498,2]
[330906526,1719936647236,-151.0,0.00021498,2]
[330906527,1719936647249,-151.0,0.00021498,2]
[330906528,1719936647258,-151.0,0.00021498,2]
[330906529,1719936647269,-452.844759,0.00021498,2]
[330906530,1719936647279,-169.84624,0.00021498,2]
[330906531,1719936647289,-151.0,0.00021498,2]
[330906532,1719936647299,-452.844759,0.00021498,2]
[330906533,1719936647309,-169.84624,0.00021498,2]
[330906534,1719936647320,-151.0,0.00021498,2]
[330906535,1719936647330,-151.0,0.00021498,2]
[330906536,1719936647341,-151.0,0.00021498,2]
[330906537,1719936647351,-739.2086,0.00021601,2]
[330906538,1719936647361,-153.11,0.00021644,2]
[330906539,1719936647372,-368.34,0.00021644,2]
[330906540,1719936647383,-405.1,0.00021644,2]
[330906541,1719936647394,-152.0,0.00021701,2]
[330906542,1719936647404,-151.0,0.00021747,2]
[330906543,1719936647415,-151.0,0.00021747,2]
[330906544,1719936647426,-1293.881447,0.00021747,2]
[330906545,1719936647436,-151.0,0.00021747,2]
[330906546,1719936647447,-451.671939,0.00021747,2]
[330906547,1719936647457,-1293.881447,0.00021747,2]
[330906548,1719936647467,-151.0,0.00021747,2]
[330906549,1719936647477,-451.671939,0.00021747,2]
[330906550,1719936647487,-151.0,0.00021747,2]
[330906551,1719936647498,-151.0,0.00021747,2]
[330906552,1719936647509,-151.0,0.00021747,2]
[330906553,1719936647519,-151.0,0.00021747,2]
[330906554,1719936647528,-151.0,0.00021747,2]
[330906555,1719936647537,-181.310624,0.00021747,2]
[330906556,1719936647547,-181.310624,0.00021747,2]
[330906557,1719936647556,-168.951407,0.00021747,2]
[330906558,1719936647566,-168.951407,0.00021747,2]
[330906559,1719936647576,-311.676995,0.00021747,2]
[330906560,1719936647586,-311.676995,0.00021747,2]
[330906561,1719936647595,-413.332779,0.00021747,2]
[330906562,1719936647605,-151.0,0.00021747,2]
[330906563,1719936647615,-151.0,0.00021747,2]
[330906564,1719936647630,-413.332779,0.00021747,2]
[330906565,1719936647640,-151.0,0.00021747,2]
[330906566,1719936647650,-151.0,0.00021747,2]
[330906567,1719936647660,-221.06337,0.00021747,2]
[330906568,1719936647672,-151.0,0.00021747,2]
[330906569,1719936647862,-221.06337,0.00021747,2]
[330906570,1719936647874,-194.8095,0.00021747,2]
[330906571,1719936647884,-151.0,0.00021747,2]
[330906572,1719936647893,-194.8095,0.00021747,2]
[330906573,1719936647903,-151.0,0.00021747,2]
[330906574,1719936647913,-151.0,0.00021748,2]
[330906575,1719936647922,-151.0,0.00021748,2]
[330906576,1719936647932,-151.0,0.00021748,2]
[330906577,1719936647943,-151.0,0.00021748,2]
[330906578,1719936647952,-151.0,0.00021748,2]
[330906579,1719936647962,-151.0,0.00021748,2]
[330906580,1719936647971,-151.0,0.00021748,2]
[330906581,1719936647981,-151.0,0.00021748,2]
[330906582,1719936647990,-151.0,0.00021748,2]
[330906583,1719936648004,-151.0,0.00021748,2]
[330906584,1719936648013,-151.0,0.00021748,2]
[330906585,1719936648022,-151.0,0.00021748,2]
[330906586,1719936648031,-151.0,0.00021748,2]
[330906587,1719936648040,-188.033842,0.00021748,2]
[330906588,1719936648049,-151.0,0.00021748,2]
[330906589,1719936648059,-430.258788,0.00021748,2]
[330906590,1719936648069,-430.258788,0.00021748,2]
[330906591,1719936648078,-155.568683,0.00021748,2]
[330906592,1719936648088,-151.0,0.00021748,2]
[330906593,1719936648099,-151.0,0.00021748,2]
[330906594,1719936648108,-155.568683,0.00021748,2]
[330906595,1719936648118,-151.0,0.00021748,2]
[330906596,1719936648127,-151.0,0.00021748,2]
[330906597,1719936648136,-151.0,0.00021748,2]
[330906598,1719936648146,-151.0,0.00021748,2]
[330906599,1719936648155,-158.55,0.00021748,2]
[330906600,1719936648165,-151.33036,0.00021748,2]
[330906601,1719936648174,-158.55,0.00021748,2]
[330906602,1719936648184,-151.33036,0.00021748,2]
[330906603,1719936648194,-164.899094,0.00021748,2]
[330906604,1719936648203,-151.0,0.00021748,2]
[330906605,1719936648213,-151.0,0.00021748,2]
[330906606,1719936648223,-151.0,0.00021748,2]
[330906607,1719936648232,-291.080013,0.00021748,2]
[330906608,1719936648241,-291.080013,0.00021748,2]
[330906609,1719936648253,-151.0,0.00021748,2]
[330906610,1719936648262,-151.0,0.00021748,2]
[330906611,1719936648271,-176.736933,0.00021748,2]
[330906612,1719936648280,-385.918609,0.00021748,2]
[330906613,1719936648289,-385.918609,0.00021748,2]
[330906614,1719936648298,-151.0,0.00021748,2]
[330906615,1719936648308,-151.0,0.00021748,2]
[330906616,1719936648317,-168.192238,0.00021748,2]
[330906617,1719936648327,-168.192238,0.00021748,2]
[330906618,1719936648336,-151.0,0.00021748,2]
[330906619,1719936648346,-807.707154,0.00021748,2]
[330906620,1719936648356,-151.0,0.00021748,2]
[330906621,1719936648366,-807.707154,0.00021748,2]
[330906622,1719936648375,-151.0,0.00021748,2]
[330906623,1719936648384,-151.0,0.00021748,2]
[330906624,1719936648393,-151.0,0.00021748,2]
[330906625,1719936648402,-151.0,0.00021748,2]
[330906626,1719936648412,-169.479669,0.00021748,2]
[330906627,1719936648421,-151.0,0.00021748,2]
[330906628,1719936648431,-169.479669,0.00021748,2]
[330906629,1719936648440,-151.0,0.00021748,2]
[330906630,1719936648449,-151.0,0.00021748,2]
[330906631,1719936648458,-151.0,0.00021748,2]
[330906632,1719936648468,-452.844759,0.00021748,2]
[330906633,1719936648477,-169.84624,0.00021748,2]
[330906634,1719936648486,-151.0,0.00021748,2]
[330906635,1719936648496,-452.844759,0.00021748,2]
[330906636,1719936648506,-169.84624,0.00021748,2]
[330906637,1719936648516,-151.0,0.00021748,2]
[330906638,1719936648526,-151.0,0.00021748,2]
[330906639,1719936648535,-151.0,0.00021748,2]
[330906640,1719936648544,-155.21627327,0.00021804,2]
[330906641,1719936648553,-679.0,0.00021825,2]
[330906642,1719936648562,-10544.40919835,0.000219,2]
[330906643,1719936648572,-314.88,0.000219,2]
[330906644,1719936648581,-500.0,0.00021917,2]
[330906645,1719936648590,-446.35,0.00021918,2]
[330906646,1719936648600,-151.0,0.00021918,2]
[330906647,1719936648609,-151.0,0.00021918,2]
[330906648,1719936648620,-154.39,0.00021918,2]
[330906649,1719936648633,-150.57,0.00021918,2]
[330906650,1719936648643,-313.742505,0.00021918,2]
[330906651,1719936648655,-313.742505,0.00021918,2]
[330906652,1719936648665,-313.742505,0.00021918,2]
[330906653,1719936648675,-313.742505,0.00021918,2]
[330906654,1719936648686,-313.742505,0.00021918,2]
[330906655,1719936648697,-313.742505,0.00021918,2]
[330906656,1719936648709,-1279.85276849,0.00021945,2]
[330906657,1719936648718,-837.82750824,0.00021945,2]
[330906658,1719936648728,-155.16504317,0.00021974,3]
[330906659,1719936648736,-2049.2818495,0.00021997,2]
[330906660,1719936648750,-500.0,0.00022,2]
[330906661,1719936648760,-589.0,0.00022,2]
[330906662,1719936648769,-30925.45325052,0.00022,2]
[330906663,1719936648779,-241.26378888,0.00022,2]
[330906664,1719936648788,-1065.65957201,0.00022,2]
[330906665,1719936648800,-15781.96822721,0.00022,2]
[330906666,1719936648810,-15478.67774837,0.00022,5]
[330906667,1719936648986,-620.1702649,0.00022,5]
[330906668,1719936649001,-5305.21991191,0.00022,5]
[330906669,1719936649012,-337.08969517,0.00022,5]
[330906670,1719936649023,-258.84237965,0.00022,5]
[330906671,1719936649033,-151.0,0.00022,7]
[330906672,1719936649043,-2377.60101121,0.00022002,2]
[330906673,1719936649065,-276.27469475,0.0002,2]
[330906674,1719936649077,-76.49416221,0.0002,2]
[330906675,1719936649086,-582.16919907,0.00022002,2]
[330906676,1719936649098,-1523.00718957,0.00022002,2]
[330906677,1719936649109,-273.72011597,0.00022002,2]
[330906678,1719936649121,-1417.56443875,0.00022002,2]
[330906679,1719936649133,-1548.2,0.00022002,2]
[330906680,1719936649149,-161.21092428,0.00022002,2]
[330906681,1719936649159,-152.0,0.00022019,2]
[330906682,1719936649169,-3000.0,0.0002203,2]
[330906683,1719936649178,-679.0,0.0002205,2]
[330906684,1719936649187,-425.31424567,0.0002209,2]
[330906685,1719936649199,-602.00844115,0.0002209,2]
[330906687,1719936691642,150.0,0.00022966,120]
[330906696,1719936750811,150.0,0.00024608,120]
[330906714,1719937114841,-500.0,0.0001311,2]
[330906715,1719937114894,-500.0,0.0001311,2]
[330906716,1719937114931,-1100.0,0.0001311,2]
[330906717,1719937114966,-1000.0,0.0001311,2]
[330906718,1719937162403,702.49402152,0.0001311,2]
[330906719,1719937179664,445.0,0.0001311,2]
[330906720,1719937181856,500.0,0.0001311,2]
[330906721,1719937199200,1000.0,0.0001311,2]
[330906722,1719937199434,500.0,0.0001311,2]
[330906753,1719937410840,150.0,0.00024348,120]
[330906764,1719937530788,150.0,0.00023745,120]
[330906766,1719937590723,150.0,0.00024134,120]
[330906798,1719937832301,-1000.0,0.00013932,2]
[330906799,1719937832310,-1000.0,0.0001448,2]
[330906800,1719937832320,-253.76645182,0.00014754,2]
[330906801,1719937832331,-246.23354818,0.00014754,2]
[330906802,1719937832340,-500.0,0.00014754,2]
[330906803,1719937832350,-540.08887165,0.00014754,2]
[330906804,1719937832361,-459.91112835,0.00014754,2]
[330906805,1719937832371,-1000.0,0.00015302,2]
[330906806,1719937832381,-506.2106,0.00015476,2]
[330906807,1719937832391,-482.01158337,0.00015576,2]
[330906808,1719937832403,-517.98841663,0.00015576,2]
[330906809,1719937832413,-4.56485868,0.00015979,2]
[330906810,1719937832424,-580.61514132,0.00015979,2]
[330906811,1719937832433,-1000.0,0.00016124,2]
[330906812,1719937832443,-499.99,0.00016124,2]
[330906813,1719937832452,-199.12,0.00016124,2]
[330906814,1719937832461,-500.0,0.00016398,2]
[330906815,1719937832470,-500.0,0.00016398,2]
[330906816,1719937832480,-1000.0,0.00016398,2]
[330906817,1719937832492,-4019.7,0.00016398,2]
[330906818,1719937832501,-1000.0,0.00016946,2]
[330906819,1719937832510,-1000.0,0.0001722,2]
[330906820,1719937832520,-1155.0173125,0.00017444,2]
[330906821,1719937832535,-1589.83195492,0.00017444,2]
[330906822,1719937832560,-1223.94511293,0.00017444,2]
[330906823,1719937832570,-51.7905105,0.00017494,2]
[330906824,1719937832581,-948.2094895,0.00017494,2]
[330906825,1719937832590,-164.52890402,0.00017533,2]
[330906826,1719937832601,-341.48088377,0.00017533,2]
[330906827,1719937832613,-1104.46932817,0.00017533,2]
[330906828,1719937832624,-315.29707946,0.00017533,2]
[330906829,1719937832635,-3074.22380458,0.00017533,2]
[330906830,1719937832645,-56.54619826,0.00017533,2]
[330906831,1719937832656,-1349.47797968,0.00017533,2]
[330906832,1719937832667,-2941.23816752,0.00017533,2]
[330906835,1719937832691,-652.73765454,0.00017533,2]
[330906837,1719937832701,-200.0,0.00017676,2]
[330906839,1719937832711,-19.94140258,0.00017761,2]
[330906841,1719937832722,-313.47859742,0.00017761,2]
[330906843,1719937832733,-150.0,0.0001777,2]
[330906845,1719937832743,-250.0,0.00017783,2]
[330906847,1719937832751,-250.0,0.00017879,2]
[330906849,1719937832761,-2493.91059926,0.00017889,2]
[330906851,1719937832770,-2344.34960095,0.00017925,2]
[330906853,1719937832779,-160.07,0.0001795,2]
[330906854,1719937832788,-310.01,0.00017971,2]
[330906855,1719937832797,-500.0,0.00017994,2]
[330906856,1719937832807,-23900.0,0.00018006,2]
[330906857,1719937832818,-500.0,0.00018042,2]
[330906858,1719937832828,-500.0,0.00018042,2]
[330906859,1719937832837,-585.18,0.00018243,2]
[330906860,1719937832846,-1000.0,0.00018316,2]
[330906861,1719937832855,-204.52042716,0.00018502,2]
[330906862,1719937832864,-161.18124067,0.00018514,2]
[330906863,1719937832873,-210.06246653,0.00018524,2]
[330906864,1719937832883,-151.14566896,0.00018532,2]
[330906865,1719937832892,-152.52853177,0.00018542,2]
[330906866,1719937832904,-210.06246653,0.00018562,2]
[330906867,1719937832914,-340.3,0.00018571,2]
[330906868,1719937832924,-1000.0,0.0001859,2]
[330906869,1719937832933,-155.84937619,0.00018613,2]
[330906870,1719937832943,-256.16542967,0.00018634,2]
[330906871,1719937832952,-1759.05412823,0.00018649,2]
[330906872,1719937832962,-152.52853177,0.00018655,2]
[330906873,1719937832972,-151.74222812,0.00018676,2]
[330906874,1719937832983,-256.16542967,0.0001869,2]
[330906875,1719937832992,-621.37867724,0.00018737,2]
[330906876,1719937833003,-166.66666666,0.00018743,2]
[330906877,1719937833018,-256.16542967,0.00018766,2]
[330906878,1719937833027,-157.58773494,0.00018771,2]
[330906879,1719937833037,-256.16542967,0.00018787,2]
[330906880,1719937833047,-151.74222812,0.0001879,2]
[330906881,1719937833058,-151.74222812,0.00018811,2]
[330906882,1719937833068,-622.93075988,0.00018835,2]
[330906883,1719937833077,-622.93075988,0.00018835,2]
[330906884,1719937833088,-160.07,0.00018847,2]
[330906885,1719937833097,-227.1,0.00018849,30]
[330906886,1719937833107,-256.16542967,0.00018855,2]
[330906887,1719937833117,-151.74222812,0.00018861,2]
[330906888,1719937833127,-256.16542967,0.00018893,2]
[330906889,1719937833136,-621.37867724,0.00018903,2]
[330906890,1719937833146,-151.74222812,0.00018914,2]
[330906891,1719937833157,-155.0,0.00018919,2]
[330906892,1719937833166,-526.21157306,0.00018919,2]
[330906893,1719937833175,-370.5829158,0.00018919,2]
[330906894,1719937833184,-210.06246653,0.00018946,2]
[330906895,1719937833193,-173.88463903,0.00019,2]
[330906896,1719937833203,-210.06246653,0.0001902,2]
[330906897,1719937833212,-227.09542874,0.00019069,2]
[330906898,1719937833222,-461.77519824,0.00019069,2]
[330906899,1719937833231,-155.0,0.00019077,2]
[330906900,1719937833241,-166.66666666,0.00019087,2]
[330906901,1719937833251,-210.06246653,0.00019097,2]
[330906902,1719937833260,-170.91839145,0.00019105,2]
[330906903,1719937833269,-153.66295654,0.00019132,2]
[330906904,1719937833279,-500.0,0.00019138,2]
[330906905,1719937833289,-500.0,0.00019138,2]
[330906906,1719937833298,-250.0,0.00019178,2]
[330906907,1719937833307,-151.74222812,0.00019214,2]
[330906908,1719937833317,-152.52853177,0.00019218,2]
[330906909,1719937833326,-256.16542967,0.00019245,2]
[330906910,1719937833336,-500.0,0.00019279,2]
[330906911,1719937833346,-161.18124067,0.00019305,2]
[330906912,1719937833356,-150.05280107,0.00019324,2]
[330906913,1719937833365,-256.16542967,0.00019342,2]
[330906914,1719937833375,-161.18124067,0.00019344,2]
[330906915,1719937833384,-181.22770058,0.00019378,2]
[330906916,1719937833393,-365.91164053,0.00019399,2]
[330906917,1719937833402,-150.40483764,0.00019403,2]
[330906918,1719937833411,-1000.0,0.00019412,2]
[330906919,1719937833420,-210.06246653,0.00019428,2]
[330906920,1719937833431,-500.0,0.00019458,2]
[330906921,1719937833441,-150.0,0.00019469,2]
[330906922,1719937833451,-210.06246653,0.00019474,2]
[330906923,1719937833460,-256.16542967,0.00019481,2]
[330906924,1719937833469,-151.74222812,0.00019487,2]
[330906925,1719937833479,-153.66295654,0.00019495,2]
[330906926,1719937833490,-792.0,0.000195,3]
[330906927,1719937833500,-2500.0,0.000195,2]
[330906928,1719937833509,-2750.0,0.000195,3]
[330906929,1719937833518,-157.58773494,0.00019555,2]
[330906930,1719937833527,-621.37867724,0.00019557,2]
[330906931,1719937833536,-152.52853177,0.00019567,2]
[330906932,1719937833545,-164.98217215,0.00019589,2]
[330906933,1719937833554,-256.16542967,0.00019604,2]
[330906934,1719937833564,-256.16542967,0.00019608,2]
[330906935,1719937833573,-166.66666666,0.00019636,2]
[330906936,1719937833582,-500.0,0.00019637,2]
[330906937,1719937833591,-150.05280107,0.00019637,2]
[330906938,1719937833600,-1000.0,0.00019686,2]
[330906939,1719937833610,-210.06246653,0.00019712,2]
[330906940,1719937833619,-166.66666666,0.00019726,2]
[330906941,1719937833628,-160.07,0.00019745,2]
[330906942,1719937833638,-256.16542967,0.00019758,2]
[330906943,1719937833647,-152.52853177,0.00019787,2]
[330906944,1719937833656,-500.0,0.00019816,2]
[330906945,1719937833665,-621.37867724,0.00019819,2]
[330906946,1719937833675,-152.52853177,0.00019826,2]
[330906947,1719937833684,-256.16542967,0.00019835,2]
[330906948,1719937833693,-155.11107819,0.00019855,2]
[330906949,1719937833702,-151.14566896,0.00019856,2]
[330906950,1719937833711,-210.06246653,0.00019865,2]
[330906951,1719937833721,-155.11107819,0.00019925,2]
[330906952,1719937833730,-10000.0,0.00019934,2]
[330906953,1719937833741,-157.58773494,0.00019961,2]
[330906954,1719937833750,-167.55,0.00019971,2]
[330906955,1719937833759,-155.77732901,0.0001998,2]
[330906956,1719937833769,-333.42,0.00019981,2]
[330906957,1719937833778,-1000.0,0.0001999,2]
[330906958,1719937833787,-500.0,0.00019995,2]
[330906959,1719937833796,-327.11942367,0.0002,2]
[330906960,1719937833805,-210.06246653,0.0002,2]
[330906961,1719937833817,-155.84937619,0.00020012,2]
[330906962,1719937833828,-155.77732901,0.00020027,2]
[330906963,1719937833837,-621.37867724,0.00020051,2]
[330906964,1719937833847,-621.37867724,0.00020069,2]
[330906965,1719937833856,-151.14566896,0.00020087,2]
[330906966,1719937833865,-157.91282588,0.00020118,2]
[330906967,1719937833874,-155.11107819,0.00020135,2]
[330906968,1719937833883,-152.52853177,0.00020151,2]
[330906969,1719937833892,-166.67,0.00020161,2]
[330906970,1719937833901,-621.37867724,0.0002017,2]
[330906971,1719937833910,-152.52853177,0.00020173,2]
[330906972,1719937833919,-500.0,0.00020174,2]
[330906973,1719937833928,-150.05280107,0.00020183,2]
[330906974,1719937833938,-210.06246653,0.00020196,2]
[330906975,1719937833947,-210.06246653,0.00020203,2]
[330906976,1719937833956,-500.0,0.00020234,2]
[330906977,1719937833966,-500.0,0.00020234,2]
[330906978,1719937833975,-153.66295654,0.00020241,2]
[330906979,1719937833986,-150.05280107,0.00020253,2]
[330906980,1719937833995,-166.66666666,0.00020274,2]
[330906981,1719937834005,-621.37867724,0.00020297,2]
[330906982,1719937834019,-154.81279975,0.00020318,2]
[330906983,1719937834028,-157.58773494,0.00020318,2]
[330906984,1719937834038,-151.02404253,0.00020318,2]
[330906985,1719937834047,-181.3517877,0.00020326,2]
[330906986,1719937834057,-500.0,0.00020353,2]
[330906987,1719937834066,-152.52853177,0.00020387,2]
[330906988,1719937834075,-151.74222812,0.00020408,2]
[330906989,1719937834087,-151.0,0.00020448,2]
[330906990,1719937834096,-153.66295654,0.00020457,2]
[330906991,1719937834105,-256.16542967,0.00020463,2]
[330906992,1719937834115,-162.19001751,0.00020495,2]
[330906993,1719937834125,-179.38266024,0.000205,2]
[330906994,1719937834135,-585.18,0.00020507,2]
[330906995,1719937834145,-1000.0,0.00020508,2]
[330906996,1719937834154,-157.58773494,0.0002051,2]
[330906997,1719937834163,-500.0,0.00020532,2]
[330906998,1719937834172,-152.52853177,0.00020535,2]
[330906999,1719937834182,-151.74222812,0.00020551,2]
[330907000,1719937834192,-621.37867724,0.00020562,2]
[330907001,1719937834201,-256.16542967,0.00020582,2]
[330907002,1719937834211,-151.74222812,0.00020584,2]
[330907003,1719937834221,-621.37867724,0.00020592,2]
[330907004,1719937834230,-150.0,0.000206,2]
[330907005,1719937834241,-150.05280107,0.00020608,2]
[330907006,1719937834250,-160.07,0.00020642,2]
[330907007,1719937834260,-500.0,0.00020711,2]
[330907008,1719937834270,-150.05280107,0.00020726,2]
[330907009,1719937834279,-151.0,0.00020764,2]
[330907010,1719937834288,-1000.0,0.00020782,2]
[330907011,1719937834297,-256.16542967,0.00020816,2]
[330907012,1719937834307,-161.18124067,0.00020841,2]
[330907013,1719937834316,-260.087136,0.00020852,2]
[330907014,1719937834326,-151.078078,0.00020852,2]
[330907015,1719937834334,-2331.015579,0.00020852,2]
[330907016,1719937834343,-170.139892,0.00020852,2]
[330907017,1719937834353,-185.098929,0.00020852,2]
[330907018,1719937834362,-157.652351,0.00020852,2]
[330907019,1719937834370,-447.671212,0.00020852,2]
[330907020,1719937834380,-520.174273,0.00020852,2]
[330907021,1719937834389,-1566.437082,0.00020852,2]
[330907022,1719937834398,-6648.519996,0.00020852,2]
[330907023,1719937834407,-301.701431,0.00020852,2]
[330907024,1719937834416,-157.485163,0.00020852,2]
[330907025,1719937834425,-160.068007,0.00020852,2]
[330907026,1719937834435,-151.476337,0.00020852,2]
[330907027,1719937834444,-186.529673,0.00020852,2]
[330907028,1719937834453,-1044.291388,0.00020852,2]
[330907029,1719937834462,-520.174274,0.00020852,2]
[330907030,1719937834471,-301.70143,0.00020852,2]
[330907031,1719937834480,-2675.542322,0.00020852,2]
[330907032,1719937834490,-151.476337,0.00020852,2]
[330907033,1719937834499,-220.051005,0.00020852,2]
[330907034,1719937834508,-157.485162,0.00020852,2]
[330907035,1719937834520,-186.529672,0.00020852,2]
[330907036,1719937834529,-200.628387,0.00020852,2]
[330907037,1719937834538,-203.108991,0.00020852,2]
[330907038,1719937834547,-256.16542967,0.00020857,2]
[330907039,1719937834556,-256.16542967,0.00020865,2]
[330907040,1719937834565,-150.05280107,0.00020874,2]
[330907041,1719937834574,-210.06246653,0.00020885,2]
[330907042,1719937834583,-500.0,0.0002089,2]
[330907043,1719937834593,-340.3,0.00020893,2]
[330907044,1719937834602,-157.58773494,0.00020895,2]
[330907045,1719937834612,-151.14566896,0.00020908,2]
[330907046,1719937834622,-155.11107819,0.00020952,2]
[330907047,1719937834631,-166.67,0.00020993,2]
[330907048,1719937834639,-225.15915694,0.00021,2]
[330907049,1719937834648,-203.15956,0.00021,2]
[330907050,1719937834658,-1250.0,0.00021,2]
[330907051,1719937834667,-204.92818495,0.00021012,2]
[330907052,1719937834676,-161.18124067,0.00021068,2]